bitfinex-derivatives/quotes_ETHF0:USTF0_20250830
["timestamp","ask_amount","ask_price","bid_price","bid_amount"]
[1756533811724,0.5634,4392.0,4391.9,3.5339]
[1756533812131,0.5634,4392.0,4391.9,3.5859]
[1756533814032,0.5634,4392.0,4391.9,3.5849]
[1756533815835,0.5634,4392.0,4391.9,3.2078]
[1756533816035,0.5634,4392.0,4391.9,0.242]
[1756533816535,0.224,4391.5,4391.4,3.2078]
[1756533816726,0.5634,4391.0,4390.9,3.3429]
[1756533816927,0.5634,4391.0,4390.9,3.5849]
[1756533817427,0.3509,4390.9,4390.3,3.2078]
[1756533817636,0.5733,4390.5,4390.4,0.242]
[1756533818028,0.5733,4390.4,4390.3,3.2078]
[1756533818227,0.5733,4390.4,4390.3,3.4498]
[1756533818824,0.5733,4390.4,4390.3,3.2078]
[1756533819225,0.5733,4390.4,4390.3,0.242]
[1756533819428,0.3509,4391.9,4391.3,0.0465]
[1756533819730,0.5733,4391.9,4391.8,0.0744]
[1756533820037,0.5733,4391.9,4391.8,0.243]
[1756533821539,0.5733,4391.9,4391.8,0.3639]
[1756533821739,0.5733,4391.9,4391.8,0.1209]
[1756533821940,0.5733,4391.9,4391.8,0.3639]
[1756533822628,0.5733,4391.9,4391.8,0.243]
[1756533823435,0.5733,4391.9,4391.8,0.3639]
[1756533824038,0.5733,4391.9,4391.8,0.243]
[1756533824334,0.5733,4391.9,4391.8,0.3639]
[1756533824541,1.16890495,4391.9,4391.8,0.3174]
[1756533824741,0.5733,4391.9,4391.8,3.3287]
[1756533824934,3.2078,4392.7,4391.9,0.0465]
[1756533824935,0.3509,4392.6,4391.9,0.0465]
[1756533825238,0.5733,4392.6,4392.5,0.0744]
[1756533825631,0.5733,4392.6,4392.5,0.1209]
[1756533826131,0.5733,4392.6,4392.4,0.243]
[1756533826132,3.2078,4393.2,4392.4,0.243]
[1756533826329,0.94633854,4393.1,4392.5,0.0465]
[1756533826531,1.16873854,4393.0,4392.9,0.0744]
[1756533826828,0.5733,4393.0,4392.9,0.1209]
[1756533828240,0.3509,4393.6,4392.9,0.1209]
[1756533828434,0.3509,4393.4,4392.9,0.1209]
[1756533828638,0.5733,4393.2,4393.1,0.1209]
[1756533828837,1.1683284,4393.2,4393.1,0.1209]
[1756533829036,0.5733,4393.1,4393.0,3.2078]
[1756533829232,1.1683284,4393.1,4393.0,3.2078]
[1756533829538,0.5733,4393.1,4393.0,3.2078]
[1756533833138,0.5733,4393.1,4392.3,3.2078]
[1756533833437,0.2224,4392.4,4392.1,0.242]
[1756533833642,0.2224,4392.2,4392.1,0.242]
[1756533833832,0.5733,4392.2,4392.1,0.242]
[1756533834839,0.2224,4392.1,4391.5,3.2078]
[1756533835030,0.5733,4391.6,4391.5,3.2078]
[1756533835235,0.5733,4391.6,4391.5,3.4498]
[1756533835943,0.5733,4391.6,4391.5,3.2078]
[1756533836441,0.5733,4391.6,4391.2,32.8]
[1756533836642,0.5733,4391.6,4391.5,0.242]
[1756533837343,0.5733,4391.6,4391.5,0.3629]
[1756533838242,0.5733,4391.6,4391.5,0.0744]
[1756533838544,0.5733,4391.6,4391.5,0.3154]
[1756533839538,0.5733,4391.6,4391.5,0.3619]
[1756533840034,0.3509,4392.6,4391.6,0.0465]
[1756533840236,0.3509,4392.4,4391.6,0.22768]
[1756533840441,0.5733,4392.4,4391.7,0.0465]
[1756533840745,0.5733,4392.4,4391.4,3.2078]
[1756533840746,0.2224,4391.9,4391.8,0.241]
[1756533840947,0.5733,4391.9,4391.8,0.241]
[1756533841341,0.5733,4391.9,4391.8,0.3619]
[1756533843739,0.5733,4391.5,4391.4,3.2078]
[1756533843940,0.5733,4391.5,4391.4,3.4488]
[1756533844145,0.5733,4391.5,4391.4,3.2078]
[1756533844449,0.5733,4391.5,4391.4,3.4488]
[1756533844741,0.5733,4391.5,4391.4,3.2078]
[1756533844945,0.5733,4391.5,4391.4,3.4488]
[1756533845441,0.5733,4391.0,4390.9,3.2078]
[1756533845645,0.5733,4390.2,4390.1,3.2078]
[1756533846546,0.2224,4390.2,4389.7,3.2078]
[1756533846738,0.241,4391.7,4389.7,3.2078]
[1756533846739,3.2078,4391.2,4389.7,3.5697]
[1756533846944,0.5483,4390.3,4390.2,0.0543]
[1756533847441,0.5639,4390.2,4390.1,0.2953]
[1756533848447,0.5639,4390.2,4390.1,0.3293]
[1756533848649,3.2078,4391.2,4390.1,0.3293]
[1756533848849,3.2078,4391.2,4389.9,3.2078]
[1756533848850,0.238,4390.2,4389.9,3.2078]
[1756533849157,0.5639,4390.1,4390.0,0.2953]
[1756533849346,0.5639,4390.1,4390.0,0.3293]
[1756533849543,0.3259,4391.1,4390.0,3.5371]
[1756533849848,0.22776001,4391.1,4389.5,3.2078]
[1756533850047,0.5639,4389.6,4389.5,3.2621]
[1756533850251,0.5639,4389.6,4389.5,3.5031]
[1756533850445,0.5639,4389.6,4389.5,3.4488]
[1756533851646,0.5639,4389.6,4389.5,3.2078]
[1756533853145,3.2078,4390.2,4389.5,3.2621]
[1756533853351,0.238,4389.7,4389.6,0.2953]
[1756533853548,0.5639,4389.7,4389.6,0.2953]
[1756533853748,0.3259,4389.7,4389.6,0.3293]
[1756533854251,0.5639,4389.7,4389.6,0.3293]
[1756533857546,3.2078,4390.7,4389.7,0.034]
[1756533857754,0.5639,4389.8,4389.7,0.0543]
[1756533857950,0.5639,4389.8,4389.7,0.3293]
[1756533858655,0.3259,4390.6,4389.7,4.5231]
[1756533858853,0.3259,4391.1,4390.1,0.034]
[1756533859054,0.3259,4391.1,4390.2,0.241]
[1756533859955,0.3259,4391.1,4390.3,0.034]
[1756533861854,0.3259,4391.4,4391.0,3.2899]
[1756533862155,0.5639,4391.4,4391.3,0.0723]
[1756533865662,0.238,4391.4,4391.0,3.2078]
[1756533865961,0.5639,4391.1,4390.7,0.241]
[1756533867856,0.5639,4390.6,4390.5,3.2078]
[1756533868052,0.5639,4390.6,4390.5,3.4488]
[1756533868558,0.5639,4390.6,4390.5,3.2078]
[1756533868758,0.5639,4390.6,4390.5,0.241]
[1756533869959,0.5639,4390.6,4390.5,3.2078]
[1756533870159,0.5639,4390.6,4390.5,3.4488]
[1756533870566,0.5639,4390.6,4390.5,3.5211]
[1756533872261,0.3259,4390.5,4390.0,3.2078]
[1756533872467,0.238,4390.2,4390.1,0.241]
[1756533872766,0.5639,4390.2,4390.1,0.241]
[1756533872967,0.238,4390.2,4390.1,0.241]
[1756533873367,0.238,4390.2,4390.1,0.2855]
[1756533873569,0.5639,4390.2,4390.1,0.2855]
[1756533874869,0.5639,4390.1,4390.0,3.4488]
[1756533875075,0.5639,4390.1,4390.0,0.241]
[1756533875971,0.238,4389.6,4389.5,3.2523]
[1756533876168,0.5639,4389.6,4389.5,3.2078]
[1756533876370,0.5639,4389.1,4389.0,3.2078]
[1756533876675,0.5639,4389.1,4389.0,3.4478]
[1756533877274,0.5639,4389.1,4389.0,3.2078]
[1756533878571,0.5639,4389.1,4388.8,0.24]
[1756533878873,3.2078,4389.7,4388.4,3.2642]
[1756533878874,0.5544,4388.5,4388.4,3.2642]
[1756533879077,0.5544,4388.5,4388.4,3.5042]
[1756533879677,0.5544,4388.5,4388.4,3.2425]
[1756533879878,0.5544,4388.5,4388.4,3.4825]
[1756533880375,0.5544,4388.5,4388.2,0.24]
[1756533880376,0.2216,4388.5,4388.2,0.24]
[1756533880581,3.2078,4389.0,4388.2,0.24]
[1756533880582,0.2216,4388.3,4388.2,0.24]
[1756533880882,0.5544,4388.3,4388.2,0.2747]
[1756533883378,0.5544,4388.3,4388.2,0.2964]
[1756533884483,0.3328,4389.4,4388.2,0.2964]
[1756533886274,0.5544,4388.3,4388.2,0.2964]
[1756533886985,0.5544,4388.3,4388.2,0.0564]
[1756533887183,0.5544,4388.3,4388.2,0.2964]
[1756533887882,0.5544,4388.3,4388.2,0.2737]
[1756533888289,0.5544,4388.3,4388.2,0.2954]
[1756533888788,0.5544,4388.3,4388.2,0.2737]
[1756533889085,0.5544,4388.3,4388.2,0.0347]
[1756533889282,0.5544,4388.3,4388.2,0.2737]
[1756533889987,0.5544,4388.3,4387.9,3.2295]
[1756533890189,0.2216,4388.0,4387.9,3.2078]
[1756533890482,0.5544,4388.0,4387.9,3.4468]
[1756533891283,0.5544,4388.0,4387.9,3.2078]
[1756533891579,0.5544,4388.0,4387.6,0.0217]
[1756533891580,0.3328,4387.9,4387.3,3.2295]
[1756533891785,0.5544,4387.4,4387.3,3.2642]
[1756533891982,0.5544,4387.4,4387.3,3.5032]
[1756533892488,0.5544,4387.4,4387.3,3.2642]
[1756533892686,0.5544,4387.4,4387.3,3.4815]
[1756533893088,0.2216,4387.4,4386.8,3.2078]
[1756533893387,0.5544,4386.9,4386.8,3.5032]
[1756533893784,0.5544,4386.9,4386.8,3.4815]
[1756533894886,0.5544,4386.9,4386.8,3.5032]
[1756533896493,0.5544,4386.9,4386.8,3.2642]
[1756533896689,0.5544,4386.9,4386.8,3.5042]
[1756533898094,3.2078,4387.8,4386.8,3.5042]
[1756533898287,0.3328,4387.7,4386.9,0.0217]
[1756533898488,0.5544,4387.7,4387.6,0.0564]
[1756533898688,0.5544,4387.7,4387.6,0.2964]
[1756533898896,0.5544,4387.7,4387.6,0.24]
[1756533899995,0.5544,4387.7,4386.8,3.2078]
[1756533900294,0.3328,4387.6,4387.0,0.0217]
[1756533900495,0.5544,4387.6,4387.5,0.0564]
[1756533900697,0.5544,4388.2,4388.1,0.0347]
[1756533900901,0.5544,4388.2,4388.1,0.2747]
[1756533901198,0.5544,4388.2,4388.1,0.2964]
[1756533901894,0.5544,4388.2,4388.1,0.0347]
[1756533902089,0.5544,4388.2,4387.4,3.2078]
[1756533902090,0.5544,4387.7,4387.6,0.0564]
[1756533902290,0.3328,4388.0,4387.6,0.2747]
[1756533902496,0.3328,4388.3,4388.0,0.0217]
[1756533902695,0.5544,4388.3,4388.2,0.0564]
[1756533903897,0.5544,4388.3,4387.9,0.24]
[1756533904290,0.5544,4388.3,4388.2,0.0564]
[1756533906295,0.3328,4388.2,4388.1,0.24]
[1756533906603,0.5544,4388.2,4388.1,0.24]
[1756533906897,0.5544,4388.2,4388.1,0.2964]
[1756533907496,0.5544,4388.2,4388.1,0.24]
[1756533909093,0.2136,4388.0,4387.5,0.0096]
[1756533909296,0.5484,4387.5,4386.9,3.2078]
[1756533909494,0.5484,4387.1,4387.0,0.2553]
[1756533909699,0.5484,4387.1,4387.0,0.0153]
[1756533909905,0.5484,4387.1,4387.0,0.2553]
[1756533910901,0.5484,4387.1,4387.0,0.2649]
[1756533911405,3.2078,4388.4,4387.0,0.2649]
[1756533911603,1.15470226,4388.3,4387.1,0.0096]
[1756533911900,0.3348,4388.3,4387.6,0.0096]
[1756533912090,0.3348,4388.3,4387.5,3.2078]
[1756533912091,0.5484,4388.2,4388.1,0.0249]
[1756533915500,0.3348,4388.9,4388.1,0.0153]
[1756533915697,0.5484,4388.9,4388.8,0.0153]
[1756533916300,0.5484,4388.9,4388.8,0.0249]
[1756533916904,0.5484,4388.9,4388.8,0.0153]
[1756533917393,0.5484,4388.9,4388.7,0.239]
[1756533918396,0.5484,4388.6,4388.5,3.2078]
[1756533918705,0.5484,4388.6,4388.5,3.4468]
[1756533922209,0.5484,4388.6,4388.5,0.239]
[1756533922607,0.5484,4388.6,4388.5,0.2543]
[1756533922910,0.5484,4388.6,4388.1,0.0096]
[1756533923110,0.5484,4388.6,4388.2,0.239]
[1756533923310,0.5484,4388.6,4388.3,0.239]
[1756533923814,0.5484,4388.6,4388.4,0.239]
[1756533924104,0.3348,4388.5,4388.4,0.239]
[1756533924311,0.5484,4388.5,4388.4,0.2454]
[1756533924607,0.5484,4388.5,4388.4,0.2494]
[1756533925913,0.3348,4388.5,4388.4,0.2494]
[1756533926411,0.5484,4388.5,4388.4,0.2494]
[1756533927007,0.2136,4388.5,4388.0,3.2118]
[1756533927311,0.5484,4388.1,4388.0,3.2182]
[1756533927512,0.5484,4388.1,4388.0,3.4572]
[1756533928010,0.5484,4388.1,4388.0,3.2182]
[1756533928210,0.5484,4388.1,4388.0,3.4572]
[1756533928609,0.3348,4388.1,4388.0,3.4572]
[1756533929914,0.5484,4388.1,4388.0,3.4572]
[1756533932114,0.5484,4388.1,4388.0,3.2142]
[1756533932414,0.3348,4389.1,4388.0,0.239]
[1756533932614,0.5484,4388.1,4388.0,0.239]
[1756533933016,0.5484,4388.1,4387.3,3.2078]
[1756533933017,0.5484,4387.4,4387.3,3.2078]
[1756533933211,0.5484,4387.4,4387.3,3.4468]
[1756533933613,0.5484,4387.4,4387.2,32.821]
[1756533933916,0.2136,4387.4,4387.3,0.239]
[1756533934117,0.2136,4387.4,4387.3,3.4468]
[1756533934309,0.5484,4387.4,4387.3,3.4468]
[1756533934512,4.2136,4387.4,4386.8,3.2078]
[1756533934707,0.5484,4386.9,4386.8,3.2078]
[1756533940625,0.5484,4386.9,4386.6,0.239]
[1756533940818,0.5484,4386.9,4386.2,3.2078]
[1756533941023,0.2205,4386.3,4386.2,3.2078]
[1756533941320,0.5273,4386.3,4386.2,3.2078]
[1756533941521,0.5273,4386.3,4386.2,3.4468]
[1756533941820,0.3068,4387.1,4386.2,3.4468]
[1756533942326,3.2078,4387.2,4386.2,3.4468]
[1756533942924,0.3068,4387.1,4386.2,3.4468]
[1756533943131,3.2078,4387.2,4386.2,3.4468]
[1756533944225,3.2078,4387.2,4386.3,0.239]
[1756533944429,0.5273,4387.1,4386.3,0.46696]
[1756533944630,0.5273,4387.1,4386.3,0.239]
[1756533944825,0.5273,4386.5,4386.4,0.239]
[1756533945930,3.2078,4387.2,4386.4,4.46697]
[1756533946229,0.3068,4388.0,4386.8,3.61808]
[1756533946437,0.5273,4388.4,4387.5,3.2078]
[1756533946736,0.3068,4388.3,4387.6,0.239]
[1756533947335,0.5273,4387.6,4387.5,3.2078]
[1756533947536,0.5273,4386.9,4386.8,3.2078]
[1756533947835,0.5273,4386.9,4386.8,3.4468]
[1756533949032,0.5273,4386.9,4386.8,0.239]
[1756533951326,0.3068,4387.9,4386.8,0.239]
[1756533952238,0.5273,4387.9,4387.5,3.2078]
[1756533952536,0.5273,4387.7,4387.6,0.239]
[1756533955037,0.3068,4388.2,4387.6,0.239]
[1756533955238,0.5273,4388.2,4387.6,0.239]
[1756533957339,0.2205,4388.2,4387.5,3.2078]
[1756533957540,0.5273,4387.7,4387.6,0.239]
[1756533958439,0.3068,4387.7,4387.6,0.239]
[1756533959241,0.3068,4388.4,4387.6,0.239]
[1756533959443,0.5273,4388.4,4387.6,0.239]
[1756533960041,0.2205,4388.4,4387.6,0.46689]
[1756533960236,0.5273,4388.3,4387.6,0.46689]
[1756533960539,0.5273,4387.8,4387.7,0.239]
[1756533960734,0.5273,4387.6,4387.5,3.2078]
[1756533960943,0.5273,4387.6,4387.5,3.4468]
[1756533962642,0.5273,4388.4,4387.5,7.4468]
[1756533962842,0.3068,4388.3,4387.5,3.4468]
[1756533963141,0.5273,4388.3,4387.5,3.4468]
[1756533963341,0.3068,4388.3,4387.5,3.4468]
[1756533963541,0.3068,4388.3,4387.6,0.2279]
[1756533963740,3.2078,4388.5,4387.6,0.2279]
[1756533963942,3.2078,4388.5,4387.7,0.22789]
[1756533964139,3.2078,4388.5,4387.8,0.239]
[1756533964541,32.83,4390.4,4387.8,0.239]
[1756533964542,0.5273,4389.1,4388.2,3.2078]
[1756533964732,0.5273,4389.1,4388.3,0.239]
[1756533965737,0.5273,4389.1,4388.2,3.2078]
[1756533965939,0.5273,4388.3,4388.2,3.2078]
[1756533966138,0.5273,4388.3,4388.2,3.4468]
[1756533967237,0.5273,4388.3,4388.2,3.2078]
[1756533967439,0.5273,4388.3,4388.2,3.4468]
[1756533968332,3.2078,4389.2,4388.2,7.67468]
[1756533968333,0.3089,4389.1,4388.2,7.67468]
[1756533968538,0.5309,4389.1,4388.2,3.4468]
[1756533969039,0.5309,4389.1,4388.2,3.67466]
[1756533969240,0.5309,4389.1,4388.3,0.22786]
[1756533969434,3.2078,4389.2,4388.3,0.41013]
[1756533969639,3.2078,4389.2,4388.6,3.2078]
[1756533969839,3.5167,4389.2,4388.7,0.239]
[1756533970036,3.7387,4389.2,4388.7,0.239]
[1756533970240,0.5309,4389.6,4388.7,0.239]
[1756533970440,3.2078,4390.0,4388.7,0.239]
[1756533970441,0.5309,4390.0,4388.7,0.239]
[1756533970635,0.3089,4389.9,4389.1,3.2078]
[1756533970836,0.5309,4389.2,4389.1,3.2078]
[1756533971246,0.5309,4389.2,4389.1,3.4468]
[1756533971441,0.5309,4389.2,4389.1,3.2078]
[1756533971744,0.5309,4389.2,4389.1,3.4468]
[1756533973645,0.5309,4389.2,4389.1,0.239]
[1756533974648,0.5309,4389.2,4389.1,3.4468]
[1756533975147,0.3089,4390.4,4389.1,3.4468]
[1756533975347,0.2278,4390.4,4389.1,3.2078]
[1756533975646,0.5309,4389.3,4389.2,0.239]
[1756533977148,0.5309,4389.3,4389.1,3.2078]
[1756533977351,0.5309,4389.3,4389.2,0.239]
[1756533977943,0.5309,4389.3,4389.1,3.2078]
[1756533978149,0.5309,4389.3,4389.2,0.239]
[1756533978351,0.5309,4389.3,4389.1,3.2078]
[1756533978653,0.5309,4389.3,4389.2,0.239]
[1756533980441,0.3089,4389.3,4389.2,0.239]
[1756533980642,0.5309,4389.3,4389.2,0.239]
[1756533983548,0.5309,4389.2,4389.1,3.2078]
[1756533983848,0.139,4391.2,4388.6,32.823]
[1756533983849,0.222,4388.7,4388.6,32.823]
[1756533984044,0.5309,4388.7,4388.6,33.062]
[1756533985046,0.0499,4388.6,4387.8,2.0169905]
[1756533985346,0.0499,4388.6,4387.3,2.85824422]
[1756533985347,0.25858,4388.6,4387.7,0.572]
[1756533985541,0.0307,4388.6,4387.8,0.239]
[1756533985742,3.2078,4388.8,4387.8,0.4654]
[1756533986039,0.22788,4388.7,4387.8,0.4654]
[1756533986549,0.22788,4388.6,4387.8,0.4654]
[1756533986750,0.22788,4388.7,4387.8,0.4654]
[1756533987750,3.2078,4388.8,4387.8,0.4654]
[1756533987951,0.22788,4388.7,4387.8,0.4654]
[1756533988251,3.2078,4388.8,4387.8,0.4654]
[1756533988450,0.22788,4388.7,4387.8,0.4654]
[1756533988652,3.2078,4388.8,4387.8,0.4654]
[1756533988951,3.43568,4388.8,4387.8,0.4654]
[1756533989851,3.2078,4388.8,4387.8,0.4654]
[1756533991650,3.2078,4388.8,4387.8,0.2264]
[1756533996958,0.0086,4387.9,4387.8,0.2264]
[1756533997158,0.014,4387.9,4387.8,0.5412]
[1756533999855,0.0086,4387.9,4387.3,0.3148]
[1756534000061,0.014,4387.4,4387.3,0.3148]
[1756534000461,0.014,4387.4,4387.3,0.5218]
[1756534000956,0.0054,4387.3,4386.7,0.3148]
[1756534001151,3.2078,4387.8,4386.7,0.5218]
[1756534001350,0.0054,4387.7,4386.8,0.3148]
[1756534001555,3.2078,4387.8,4386.8,0.3148]
[1756534001755,0.0054,4387.7,4386.8,0.3148]
[1756534002258,3.2078,4387.8,4386.8,0.3148]
[1756534002762,0.0054,4387.7,4386.8,0.3148]
[1756534003162,3.2078,4387.8,4386.8,0.3148]
[1756534003459,0.0054,4387.7,4386.8,0.3148]
[1756534003763,3.2078,4387.8,4386.8,0.3148]
[1756534004356,0.0054,4387.7,4386.8,0.3148]
[1756534004562,3.2078,4387.8,4386.8,0.3148]
[1756534004859,0.0054,4387.7,4386.8,0.3148]
[1756534005765,3.2078,4387.8,4386.8,0.3148]
[1756534006160,0.0054,4387.7,4386.8,0.3148]
[1756534006755,3.2078,4387.8,4386.8,0.3148]
[1756534007765,0.0054,4387.7,4386.8,0.3148]
[1756534008064,0.014,4386.9,4386.8,0.5218]
[1756534009568,3.2078,4387.3,4386.6,3.2078]
[1756534009569,0.014,4386.7,4386.6,3.2078]
[1756534009763,0.014,4386.7,4386.6,3.5226]
[1756534010070,0.014,4386.7,4386.6,3.7296]
[1756534015573,0.0086,4386.7,4386.6,3.7296]
[1756534015774,0.0086,4386.7,4386.6,0.5218]
[1756534015979,3.2078,4386.8,4386.7,0.5218]
[1756534022071,3.2078,4386.8,4386.7,0.3148]
[1756534022279,3.2078,4386.8,4385.9,0.3148]
[1756534022578,3.2078,4386.3,4385.9,0.5218]
[1756534022781,3.2078,4386.3,4385.4,0.3148]
[1756534022971,3.4468,4386.3,4385.4,0.5218]
[1756534023581,3.4468,4386.3,4385.4,0.207]
[1756534023870,3.2078,4385.8,4385.2,0.3148]
[1756534024076,3.2078,4385.8,4385.7,0.207]
[1756534024077,3.4468,4385.8,4385.7,0.207]
[1756534024377,3.4468,4385.8,4385.7,0.5218]
[1756534025173,3.4468,4385.8,4384.4,0.3148]
[1756534025380,3.4468,4385.8,4384.7,0.3148]
[1756534028579,3.4468,4385.8,4384.7,0.5337]
[1756534028880,3.2078,4385.3,4384.7,0.5337]
[1756534029376,0.239,4385.2,4384.2,0.2966]
[1756534029569,3.2078,4384.8,4384.2,0.2189]
[1756534029769,3.2078,4384.8,4384.3,0.2966]
[1756534030681,3.2078,4384.8,4384.7,0.2189]
[1756534030980,3.2078,4384.8,4384.7,0.5155]
[1756534031180,3.2078,4384.8,4384.7,4.5155]
[1756534031568,3.2078,4385.3,4384.8,0.2966]
[1756534031781,3.2078,4385.8,4385.2,0.2189]
[1756534031981,3.2078,4385.8,4385.7,0.2189]
[1756534032278,3.2078,4385.8,4385.7,0.5155]
[1756534054703,3.2078,4385.8,4384.7,3.2078]
[1756534054704,3.2078,4385.8,4384.8,0.2966]
[1756534054907,3.2078,4385.8,4385.7,0.5155]
[1756534055706,3.2078,4385.8,4385.7,0.2966]
[1756534057404,3.2078,4385.8,4385.0,0.238]
[1756534057905,3.2078,4385.8,4385.1,0.3035]
[1756534059309,3.2078,4385.8,4385.1,0.5056]
[1756534059607,3.2078,4385.8,4385.2,0.3035]
[1756534060704,3.2078,4385.8,4385.2,0.5056]
[1756534062009,3.2078,4385.8,4385.2,0.2021]
[1756534062204,3.2078,4385.8,4385.4,0.3035]
[1756534062405,3.2078,4385.8,4385.0,0.238]
[1756534062406,3.2078,4385.8,4385.1,0.3035]
[1756534063108,3.2078,4385.8,4385.7,0.5056]
[1756534063609,3.2078,4385.8,4385.7,0.3035]
[1756534064109,3.2078,4385.8,4385.0,0.238]
[1756534064309,3.2078,4385.8,4385.1,0.3035]
[1756534065110,3.2078,4385.8,4385.7,0.5056]
[1756534066914,3.2078,4385.8,4385.2,0.3035]
[1756534067113,3.2078,4385.8,4385.3,0.2021]
[1756534067309,3.2078,4385.8,4385.5,0.3035]
[1756534067514,3.2078,4385.8,4385.0,0.238]
[1756534067515,3.2078,4385.8,4385.0,0.7436]
[1756534067717,3.2078,4385.8,4385.0,0.5056]
[1756534068307,0.59172474,4385.7,4384.7,0.3035]
[1756534068508,3.2078,4385.2,4384.4,2.0169905]
[1756534068713,3.4458,4385.2,4384.3,0.5056]
[1756534069412,3.4458,4385.2,4384.3,0.3035]
[1756534070812,3.4458,4385.2,4384.3,0.5056]
[1756534071018,3.4458,4385.2,4384.4,0.3035]
[1756534071215,3.4458,4385.2,4384.4,0.5056]
[1756534071811,3.4458,4385.2,4384.5,0.3035]
[1756534072115,3.4458,4385.2,4384.5,0.5056]
[1756534073216,0.22806,4385.1,4384.2,0.5056]
[1756534073414,3.4458,4385.2,4384.2,0.5056]
[1756534073616,0.22807,4385.1,4384.2,0.5056]
[1756534073918,3.4458,4385.2,4384.2,0.5056]
[1756534075016,3.67387,4385.2,4384.1,0.10492342]
[1756534075320,3.2078,4384.6,4384.1,0.30702342]
[1756534075520,3.2078,4384.6,4384.3,0.3035]
[1756534076514,3.2078,4384.6,4384.4,0.3035]
[1756534076719,3.2078,4384.6,4384.5,0.5056]
[1756534077719,3.4458,4385.1,4384.6,0.2021]
[1756534077920,3.2078,4385.1,4384.7,0.2021]
[1756534078120,3.2078,4385.1,4384.8,0.3035]
[1756534078319,3.2078,4385.1,4384.9,0.3035]
[1756534079816,3.2078,4385.6,4385.0,0.3035]
[1756534080021,3.2078,4385.6,4385.5,0.5056]
[1756534081017,3.39681194,4385.6,4385.5,0.5056]
[1756534081219,0.18901194,4385.6,4385.5,0.5056]
[1756534081622,0.18901194,4385.6,4385.5,4.73361999]
[1756534082016,3.4458,4386.7,4386.1,0.3035]
[1756534082220,3.8188,4386.7,4386.6,0.5056]
[1756534082515,0.373,4386.7,4386.6,0.5056]
[1756534083121,3.2078,4387.2,4386.9,0.2021]
[1756534083323,3.2078,4387.2,4387.1,0.2021]
[1756534083621,3.2078,4387.2,4387.1,0.5056]
[1756534083822,3.2078,4387.2,4387.1,4.5056]
[1756534084525,0.373,4387.9,4387.8,0.5056]
[1756534085118,0.1716,4387.8,4387.3,0.3035]
[1756534085316,3.4458,4388.1,4386.8,0.238]
[1756534085520,0.373,4386.9,4386.8,0.5056]
[1756534086122,0.1716,4386.8,4386.4,0.238]
[1756534086322,0.373,4386.5,4386.4,0.7436]
[1756534086926,0.373,4386.5,4386.4,0.5056]
[1756534090426,0.1622,4386.4,4386.2,3.5221]
[1756534090629,3.2078,4387.1,4386.3,0.5102]
[1756534090830,3.2078,4387.1,4386.4,0.3143]
[1756534091031,0.1622,4387.0,4386.4,0.3143]
[1756534091534,0.3696,4386.5,4386.4,0.5102]
[1756534093137,0.3696,4387.5,4387.4,0.5102]
[1756534093537,0.2074,4387.0,4386.9,0.3143]
[1756534093830,0.3696,4387.0,4386.9,0.3143]
[1756534094133,0.3696,4387.0,4386.9,0.5102]
[1756534094536,0.2074,4387.0,4386.9,0.5102]
[1756534094844,0.1622,4387.3,4386.9,0.1959]
[1756534095139,0.3696,4387.3,4387.2,0.5102]
[1756534095334,3.37,4387.6,4387.3,0.3143]
[1756534095633,0.3696,4387.5,4387.4,0.1959]
[1756534095834,0.3696,4387.5,4387.4,0.5102]
[1756534096228,0.1622,4387.4,4386.9,0.3143]
[1756534096534,3.5774,4387.6,4387.5,0.5102]
[1756534097237,3.2078,4387.6,4386.7,0.181]
[1756534097437,3.2078,4387.6,4386.8,0.5102]
[1756534097438,0.2074,4386.9,4386.8,0.5102]
[1756534098539,0.3696,4386.9,4386.8,0.5102]
[1756534099739,0.3652,4387.0,4386.9,0.5102]
[1756534101337,0.1578,4387.5,4387.0,0.3143]
[1756534101532,0.2074,4387.4,4387.3,0.1959]
[1756534101741,0.3652,4387.4,4387.3,0.5102]
[1756534102744,0.3652,4387.4,4387.3,0.3143]
[1756534103042,0.1578,4387.3,4386.7,0.3143]
[1756534103238,0.3652,4387.3,4387.2,0.5102]
[1756534104441,0.3652,4387.3,4387.2,0.3143]
[1756534104844,0.3652,4387.3,4387.2,0.5102]
[1756534106840,0.2074,4387.3,4387.2,0.5102]
[1756534107743,0.3652,4387.3,4387.2,0.5102]
[1756534108548,0.3652,4387.3,4386.5,0.238]
[1756534108755,3.2078,4387.6,4386.6,0.3143]
[1756534108952,0.1578,4387.5,4386.6,0.3143]
[1756534109854,0.3652,4387.5,4387.4,0.5102]
[1756534112254,0.1578,4387.4,4386.5,0.3143]
[1756534112551,0.3652,4387.4,4387.3,0.1959]
[1756534112744,0.3652,4387.4,4387.3,0.5102]
[1756534113750,0.1578,4387.3,4386.4,0.3143]
[1756534113944,0.2074,4387.4,4386.4,0.3143]
[1756534113945,3.2078,4387.1,4386.4,0.3143]
[1756534114150,0.3652,4386.5,4386.4,0.5102]
[1756534114750,0.3652,4386.5,4386.4,0.3143]
[1756534114950,0.1578,4386.4,4385.9,0.3143]
[1756534115250,0.1578,4386.8,4385.9,0.3143]
[1756534115444,0.238,4386.9,4385.9,0.3143]